[Event "Titled Tuesday Blitz January 31 Late 2023"]
[White "Rosen, Eric"]
[Black "Pranav, V"]
[WhiteFideId "2032562"]
[BlackFideId "25060783"]
[WhiteElo "2349"]
[BlackElo "2597"]
[Result "0-1"]
[Round "04"]
[TimeControl "180+2"]
[Date "2023.01.31"]
[WhiteClock "0:00:01"]
[BlackClock "0:00:19"]

1. d4 {[%clk 0:02:53]}  Nf6 {[%clk 0:02:59]} 2. Bf4 {[%clk 0:02:53]}  c5 {[%clk 0:02:59]} 3. e3 {[%clk 0:02:53]}  cxd4 {[%clk 0:02:59]} 4. exd4 {[%clk 0:02:53]}  b6 {[%clk 0:02:59]} 5. Nf3 {[%clk 0:02:40]}  Bb7 {[%clk 0:02:59]} 6. Nbd2 {[%clk 0:02:40]}  g6 {[%clk 0:02:59]} 7. Be2 {[%clk 0:02:36]}  Bg7 {[%clk 0:02:59]} 8. O-O {[%clk 0:02:37]}  O-O {[%clk 0:02:59]} 9. c3 {[%clk 0:02:38]}  d5 {[%clk 0:02:59]} 10. h3 {[%clk 0:02:37]}  Nc6 {[%clk 0:02:57]} 11. Re1 {[%clk 0:02:38]}  a6 {[%clk 0:02:57]} 12. a4 {[%clk 0:02:38]}  Rc8 {[%clk 0:02:56]} 13. Bf1 {[%clk 0:02:37]}  Re8 {[%clk 0:02:55]} 14. Ne5 {[%clk 0:02:36]}  Nxe5 {[%clk 0:02:47]} 15. Bxe5 {[%clk 0:02:36]}  Nh5 {[%clk 0:02:46]} 16. Bh2 {[%clk 0:02:30]}  Bh6 {[%clk 0:02:36]} 17. Nf3 {[%clk 0:02:22]}  Bf4 {[%clk 0:02:35]} 18. Bxf4 {[%clk 0:02:19]}  Nxf4 {[%clk 0:02:36]} 19. Ne5 {[%clk 0:02:20]}  f6 {[%clk 0:02:31]} 20. Nd3 {[%clk 0:02:11]}  Nh5 {[%clk 0:02:31]} 21. Qg4 {[%clk 0:02:06]}  Ng7 {[%clk 0:02:30]} 22. g3 {[%clk 0:01:58]}  Rc7 {[%clk 0:02:24]} 23. Bg2 {[%clk 0:01:58]}  e6 {[%clk 0:02:20]} 24. h4 {[%clk 0:01:58]}  Rce7 {[%clk 0:02:18]} 25. a5 {[%clk 0:01:54]}  bxa5 {[%clk 0:02:15]} 26. Nc5 {[%clk 0:01:54]}  Bc8 {[%clk 0:02:15]} 27. Qf3 {[%clk 0:01:48]}  Nf5 {[%clk 0:02:13]} 28. h5 {[%clk 0:01:31]}  Kg7 {[%clk 0:02:12]} 29. Re2 {[%clk 0:01:05]}  Nd6 {[%clk 0:01:58]} 30. h6+ {[%clk 0:01:01]}  Kxh6 {[%clk 0:01:49]} 31. Qxf6 {[%clk 0:00:59]}  Rf8 {[%clk 0:01:50]} 32. Qh4+ {[%clk 0:00:53]}  Kg7 {[%clk 0:01:49]} 33. Rae1 {[%clk 0:00:53]}  Nf5 {[%clk 0:01:29]} 34. Qf4 {[%clk 0:00:47]}  Rf6 {[%clk 0:01:24]} 35. Qe5 {[%clk 0:00:45]}  Nh6 {[%clk 0:01:04]} 36. Bh3 {[%clk 0:00:42]}  Nf7 {[%clk 0:01:02]} 37. Qe3 {[%clk 0:00:37]}  e5 {[%clk 0:01:01]} 38. Bxc8 {[%clk 0:00:30]}  Qxc8 {[%clk 0:01:02]} 39. dxe5 {[%clk 0:00:30]}  Rxe5 {[%clk 0:00:54]} 40. Qd4 {[%clk 0:00:30]}  Ng5 {[%clk 0:00:47]} 41. Re3 {[%clk 0:00:06]}  Rxe3 {[%clk 0:00:26]} 42. Rxe3 {[%clk 0:00:06]}  Qf5 {[%clk 0:00:26]} 43. Re7+ {[%clk 0:00:01]}  Kf8 {[%clk 0:00:27]} 44. Qe3 {[%clk 0:00:01]}  Nh3+ {[%clk 0:00:19]} 45. Kg2 {[%clk 0:00:01]}  Qxf2+ {[%clk 0:00:18]} 46. Kxh3 {[%clk 0:00:01]}  Qf1+ {[%clk 0:00:18]} 47. Kg4 {[%clk 0:00:01]}  Qf5+ {[%clk 0:00:18]} 48. Kh4 {[%clk 0:00:01]}  Qh5# {[%clk 0:00:19]} 0-1


[Site "https://www.chess.com"]

[Event "Titled Tuesday Blitz January 31 Late 2023"]
[White "Lymar, Vladislav"]
[Black "Bluebaum, Matthias"]
[WhiteFideId "14162180"]
[BlackFideId "24651516"]
[WhiteElo "2119"]
[BlackElo "2669"]
[Result "1-0"]
[Round "04"]
[TimeControl "180+2"]
[Date "2023.01.31"]
[WhiteClock "0:00:02"]
[BlackClock "0:00:03"]

1. e4 {[%clk 0:03:00]}  e6 {[%clk 0:03:00]} 2. Qe2 {[%clk 0:03:00]}  c5 {[%clk 0:02:59]} 3. Nf3 {[%clk 0:03:00]}  Nc6 {[%clk 0:03:00]} 4. g3 {[%clk 0:03:00]}  g6 {[%clk 0:03:01]} 5. Bg2 {[%clk 0:03:00]}  Bg7 {[%clk 0:03:01]} 6. c3 {[%clk 0:03:00]}  Nge7 {[%clk 0:03:02]} 7. O-O {[%clk 0:03:00]}  O-O {[%clk 0:03:03]} 8. Na3 {[%clk 0:03:00]}  d6 {[%clk 0:03:03]} 9. d3 {[%clk 0:02:59]}  e5 {[%clk 0:03:03]} 10. Nd2 {[%clk 0:02:55]}  h6 {[%clk 0:03:01]} 11. f4 {[%clk 0:02:53]}  exf4 {[%clk 0:03:02]} 12. gxf4 {[%clk 0:02:52]}  d5 {[%clk 0:02:59]} 13. Nf3 {[%clk 0:02:42]}  Be6 {[%clk 0:02:52]} 14. Kh1 {[%clk 0:02:31]}  Qd7 {[%clk 0:02:46]} 15. f5 {[%clk 0:02:25]}  gxf5 {[%clk 0:02:46]} 16. e5 {[%clk 0:02:25]}  Ng6 {[%clk 0:02:35]} 17. d4 {[%clk 0:02:25]}  cxd4 {[%clk 0:02:36]} 18. cxd4 {[%clk 0:02:26]}  f4 {[%clk 0:02:36]} 19. Nb5 {[%clk 0:02:12]}  f6 {[%clk 0:02:33]} 20. exf6 {[%clk 0:02:05]}  Rxf6 {[%clk 0:02:33]} 21. Ne5 {[%clk 0:01:57]}  Ncxe5 {[%clk 0:02:27]} 22. dxe5 {[%clk 0:01:58]}  Rf5 {[%clk 0:02:27]} 23. Nd4 {[%clk 0:01:28]}  Rxe5 {[%clk 0:02:25]} 24. Qd3 {[%clk 0:01:28]}  Bf5 {[%clk 0:02:18]} 25. Nxf5 {[%clk 0:01:19]}  Qxf5 {[%clk 0:02:19]} 26. Qb3 {[%clk 0:01:14]}  Rae8 {[%clk 0:01:40]} 27. Bd2 {[%clk 0:01:11]}  Re2 {[%clk 0:01:26]} 28. Qxd5+ {[%clk 0:01:05]}  Qxd5 {[%clk 0:01:21]} 29. Bxd5+ {[%clk 0:01:06]}  Kh8 {[%clk 0:01:22]} 30. Bxf4 {[%clk 0:01:00]}  Rxb2 {[%clk 0:01:22]} 31. Bf7 {[%clk 0:00:56]}  Nxf4 {[%clk 0:00:34]} 32. Bxe8 {[%clk 0:00:53]}  Be5 {[%clk 0:00:35]} 33. Rab1 {[%clk 0:00:44]}  Rxa2 {[%clk 0:00:26]} 34. Rxb7 {[%clk 0:00:43]}  Bd6 {[%clk 0:00:27]} 35. Rd7 {[%clk 0:00:40]}  Be5 {[%clk 0:00:22]} 36. Bf7 {[%clk 0:00:37]}  Rb2 {[%clk 0:00:16]} 37. Rg1 {[%clk 0:00:22]}  Rb8 {[%clk 0:00:15]} 38. Rxa7 {[%clk 0:00:15]}  Nh3 {[%clk 0:00:15]} 39. Rf1 {[%clk 0:00:13]}  Rb2 {[%clk 0:00:13]} 40. Ra2 {[%clk 0:00:12]}  Rb8 {[%clk 0:00:13]} 41. Be6 {[%clk 0:00:11]}  Nf4 {[%clk 0:00:14]} 42. Bc4 {[%clk 0:00:09]}  Rc8 {[%clk 0:00:13]} 43. Bb3 {[%clk 0:00:09]}  Rb8 {[%clk 0:00:14]} 44. Bf7 {[%clk 0:00:09]}  Rf8 {[%clk 0:00:14]} 45. Ra7 {[%clk 0:00:09]}  Rc8 {[%clk 0:00:12]} 46. Rb7 {[%clk 0:00:09]}  Rc2 {[%clk 0:00:11]} 47. Re1 {[%clk 0:00:07]}  Nd3 {[%clk 0:00:07]} 48. Re3 {[%clk 0:00:08]}  Rc1+ {[%clk 0:00:03]} 49. Kg2 {[%clk 0:00:07]}  Nf4+ {[%clk 0:00:04]} 50. Kf3 {[%clk 0:00:07]}  Rc5 {[%clk 0:00:04]} 51. Rd7 {[%clk 0:00:05]}  Ra5 {[%clk 0:00:02]} 52. Rxe5 {[%clk 0:00:05]}  Rxe5 {[%clk 0:00:03]} 53. Kxf4 {[%clk 0:00:05]}  Re1 {[%clk 0:00:04]} 54. Kg3 {[%clk 0:00:05]}  Kg7 {[%clk 0:00:04]} 55. Bh5+ {[%clk 0:00:05]}  Kf6 {[%clk 0:00:04]} 56. Bf3 {[%clk 0:00:05]}  Re3 {[%clk 0:00:04]} 57. Rd6+ {[%clk 0:00:05]}  Kg7 {[%clk 0:00:05]} 58. Kf4 {[%clk 0:00:05]}  Ra3 {[%clk 0:00:05]} 59. h4 {[%clk 0:00:05]}  Ra7 {[%clk 0:00:05]} 60. Be4 {[%clk 0:00:05]}  Rf7+ {[%clk 0:00:05]} 61. Kg4 {[%clk 0:00:05]}  Ra7 {[%clk 0:00:04]} 62. Rg6+ {[%clk 0:00:06]}  Kh8 {[%clk 0:00:04]} 63. Rxh6+ {[%clk 0:00:06]}  Kg8 {[%clk 0:00:04]} 64. Rc6 {[%clk 0:00:05]}  Rg7+ {[%clk 0:00:04]} 65. Kf5 {[%clk 0:00:05]}  Rf7+ {[%clk 0:00:05]} 66. Kg5 {[%clk 0:00:05]}  Re7 {[%clk 0:00:04]} 67. Bf5 {[%clk 0:00:05]}  Kg7 {[%clk 0:00:04]} 68. Rg6+ {[%clk 0:00:05]}  Kh8 {[%clk 0:00:04]} 69. Rd6 {[%clk 0:00:04]}  Rg7+ {[%clk 0:00:03]} 70. Bg6 {[%clk 0:00:04]}  Re7 {[%clk 0:00:03]} 71. h5 {[%clk 0:00:03]}  Rc7 {[%clk 0:00:03]} 72. Rd8+ {[%clk 0:00:02]}  Kg7 {[%clk 0:00:03]} 73. h6# {[%clk 0:00:02]} 1-0


[Site "https://www.chess.com"]

[Event "Titled Tuesday Blitz January 31 Late 2023"]
[White "Makhnev, Denis"]
[Black "Cori T., Deysi"]
[WhiteFideId "13707647"]
[BlackFideId "3801934"]
[WhiteElo "2483"]
[BlackElo "2362"]
[Result "1-0"]
[Round "04"]
[TimeControl "180+2"]
[Date "2023.01.31"]
[WhiteClock "0:00:14"]
[BlackClock "0:00:07"]

1. d4 {[%clk 0:03:00]}  Nf6 {[%clk 0:02:58]} 2. c4 {[%clk 0:03:01]}  e6 {[%clk 0:02:59]} 3. Nf3 {[%clk 0:03:01]}  Bb4+ {[%clk 0:02:59]} 4. Bd2 {[%clk 0:03:01]}  Qe7 {[%clk 0:02:59]} 5. e3 {[%clk 0:03:01]}  O-O {[%clk 0:02:59]} 6. Bd3 {[%clk 0:03:01]}  Nc6 {[%clk 0:02:59]} 7. Nc3 {[%clk 0:03:00]}  d6 {[%clk 0:02:57]} 8. e4 {[%clk 0:02:57]}  e5 {[%clk 0:02:54]} 9. d5 {[%clk 0:02:57]}  Nd4 {[%clk 0:02:54]} 10. h3 {[%clk 0:02:45]}  c5 {[%clk 0:02:50]} 11. O-O {[%clk 0:02:38]}  Ne8 {[%clk 0:02:46]} 12. a3 {[%clk 0:01:35]}  Ba5 {[%clk 0:02:34]} 13. Rb1 {[%clk 0:01:34]}  f5 {[%clk 0:02:30]} 14. b4 {[%clk 0:01:34]}  cxb4 {[%clk 0:02:26]} 15. axb4 {[%clk 0:01:33]}  Bb6 {[%clk 0:02:26]} 16. exf5 {[%clk 0:01:20]}  Bxf5 {[%clk 0:02:22]} 17. Bxf5 {[%clk 0:01:19]}  Rxf5 {[%clk 0:02:22]} 18. Nxd4 {[%clk 0:01:19]}  Bxd4 {[%clk 0:02:21]} 19. Ne2 {[%clk 0:01:13]}  Qh4 {[%clk 0:02:21]} 20. Nxd4 {[%clk 0:01:12]}  Qxd4 {[%clk 0:02:21]} 21. Qc2 {[%clk 0:01:07]}  Rf7 {[%clk 0:02:17]} 22. Be3 {[%clk 0:01:07]}  Qh4 {[%clk 0:02:16]} 23. c5 {[%clk 0:01:08]}  Rc8 {[%clk 0:02:16]} 24. c6 {[%clk 0:01:08]}  bxc6 {[%clk 0:02:15]} 25. dxc6 {[%clk 0:01:07]}  a6 {[%clk 0:02:12]} 26. Rfc1 {[%clk 0:01:03]}  d5 {[%clk 0:02:02]} 27. Bb6 {[%clk 0:00:52]}  d4 {[%clk 0:02:02]} 28. Re1 {[%clk 0:00:49]}  Qf6 {[%clk 0:01:58]} 29. Rbc1 {[%clk 0:00:49]}  Nd6 {[%clk 0:01:52]} 30. Qe2 {[%clk 0:00:43]}  e4 {[%clk 0:01:51]} 31. Qxa6 {[%clk 0:00:36]}  Qxf2+ {[%clk 0:01:48]} 32. Kh1 {[%clk 0:00:37]}  Rcf8 {[%clk 0:00:33]} 33. Qe2 {[%clk 0:00:21]}  Qg3 {[%clk 0:00:20]} 34. Qg4 {[%clk 0:00:14]}  Qxg4 {[%clk 0:00:11]} 35. hxg4 {[%clk 0:00:15]}  d3 {[%clk 0:00:12]} 36. Bc5 {[%clk 0:00:13]}  d2 {[%clk 0:00:09]} 37. Bxd6 {[%clk 0:00:14]}  dxe1=Q+ {[%clk 0:00:09]} 38. Rxe1 {[%clk 0:00:13]}  Rf1+ {[%clk 0:00:10]} 39. Rxf1 {[%clk 0:00:13]}  Rxf1+ {[%clk 0:00:11]} 40. Kh2 {[%clk 0:00:14]}  Rc1 {[%clk 0:00:10]} 41. Bc5 {[%clk 0:00:14]}  e3 {[%clk 0:00:07]} 42. c7 {[%clk 0:00:14]} 1-0


[Site "https://www.chess.com"]

[Event "Titled Tuesday Blitz January 31 Late 2023"]
[White "Terry, Renato"]
[Black "Mladek, Richard"]
[WhiteFideId "3803457"]
[BlackFideId "386588"]
[WhiteElo "2520"]
[BlackElo "2436"]
[Result "1-0"]
[Round "04"]
[TimeControl "180+2"]
[Date "2023.01.31"]
[WhiteClock "0:00:05"]
[BlackClock "0:00:05"]

1. e4 {[%clk 0:03:00]}  e5 {[%clk 0:02:59]} 2. Nf3 {[%clk 0:03:01]}  Nc6 {[%clk 0:02:59]} 3. c3 {[%clk 0:03:01]}  Nf6 {[%clk 0:02:52]} 4. d4 {[%clk 0:03:01]}  exd4 {[%clk 0:02:44]} 5. e5 {[%clk 0:03:01]}  Ne4 {[%clk 0:02:39]} 6. Qe2 {[%clk 0:03:01]}  d5 {[%clk 0:02:36]} 7. exd6 {[%clk 0:03:01]}  f5 {[%clk 0:02:36]} 8. Nxd4 {[%clk 0:03:02]}  Nxd4 {[%clk 0:02:26]} 9. cxd4 {[%clk 0:03:02]}  Bxd6 {[%clk 0:02:19]} 10. f3 {[%clk 0:03:02]}  Qh4+ {[%clk 0:02:18]} 11. g3 {[%clk 0:03:02]}  Bxg3+ {[%clk 0:02:17]} 12. hxg3 {[%clk 0:03:02]}  Qxh1 {[%clk 0:02:16]} 13. fxe4 {[%clk 0:03:03]}  fxe4 {[%clk 0:02:12]} 14. Nc3 {[%clk 0:03:03]}  O-O {[%clk 0:02:10]} 15. Bf4 {[%clk 0:03:03]}  Bf5 {[%clk 0:01:19]} 16. O-O-O {[%clk 0:03:01]}  Bg6 {[%clk 0:01:05]} 17. Qc4+ {[%clk 0:01:17]}  Kh8 {[%clk 0:01:01]} 18. Be2 {[%clk 0:01:16]}  Qh2 {[%clk 0:00:53]} 19. d5 {[%clk 0:01:14]}  Rac8 {[%clk 0:00:42]} 20. Qd4 {[%clk 0:01:12]}  a6 {[%clk 0:00:33]} 21. Qe3 {[%clk 0:00:58]}  b5 {[%clk 0:00:30]} 22. a3 {[%clk 0:00:56]}  Qh3 {[%clk 0:00:22]} 23. Na2 {[%clk 0:00:48]}  Rfe8 {[%clk 0:00:19]} 24. Nb4 {[%clk 0:00:48]}  a5 {[%clk 0:00:14]} 25. Nc6 {[%clk 0:00:47]}  b4 {[%clk 0:00:14]} 26. a4 {[%clk 0:00:48]}  Bh5 {[%clk 0:00:13]} 27. Kb1 {[%clk 0:00:38]}  Bxe2 {[%clk 0:00:12]} 28. Qxe2 {[%clk 0:00:39]}  Qf5 {[%clk 0:00:13]} 29. Qe3 {[%clk 0:00:36]}  b3 {[%clk 0:00:07]} 30. Rd4 {[%clk 0:00:13]}  Qg6 {[%clk 0:00:07]} 31. Ka1 {[%clk 0:00:10]}  h6 {[%clk 0:00:07]} 32. Qxb3 {[%clk 0:00:08]}  e3 {[%clk 0:00:06]} 33. Bxe3 {[%clk 0:00:09]}  Qxg3 {[%clk 0:00:06]} 34. Rd3 {[%clk 0:00:09]}  Qf3 {[%clk 0:00:05]} 35. Ka2 {[%clk 0:00:09]}  Qf5 {[%clk 0:00:04]} 36. Bd4 {[%clk 0:00:08]}  Kh7 {[%clk 0:00:03]} 37. Rg3 {[%clk 0:00:08]}  Rg8 {[%clk 0:00:03]} 38. Ne7 {[%clk 0:00:08]}  Qf7 {[%clk 0:00:02]} 39. Qd3+ {[%clk 0:00:07]}  g6 {[%clk 0:00:02]} 40. Nxg8 {[%clk 0:00:07]}  Qxd5+ {[%clk 0:00:03]} 41. b3 {[%clk 0:00:05]}  Rxg8 {[%clk 0:00:04]} 42. Qc4 {[%clk 0:00:05]}  Qf7 {[%clk 0:00:05]} 43. Qxf7+ {[%clk 0:00:05]} 1-0


[Site "https://www.chess.com"]

[Event "Titled Tuesday Blitz January 31 Late 2023"]
[White "Djokic, Mihailo"]
[Black "Dardha, Daniel"]
[WhiteFideId "976440"]
[BlackFideId "240990"]
[WhiteElo "2192"]
[BlackElo "2631"]
[Result "0-1"]
[Round "04"]
[TimeControl "180+2"]
[Date "2023.01.31"]
[WhiteClock "0:00:53"]
[BlackClock "0:01:42"]

1. e4 {[%clk 0:02:58]}  c5 {[%clk 0:02:57]} 2. Nf3 {[%clk 0:02:57]}  d6 {[%clk 0:02:57]} 3. d4 {[%clk 0:02:56]}  cxd4 {[%clk 0:02:58]} 4. Nxd4 {[%clk 0:02:56]}  Nf6 {[%clk 0:02:57]} 5. Nc3 {[%clk 0:02:56]}  Nc6 {[%clk 0:02:58]} 6. Bg5 {[%clk 0:02:55]}  e6 {[%clk 0:02:56]} 7. Qd2 {[%clk 0:02:54]}  Bd7 {[%clk 0:02:54]} 8. O-O-O {[%clk 0:02:54]}  a6 {[%clk 0:02:54]} 9. f4 {[%clk 0:02:54]}  Be7 {[%clk 0:02:52]} 10. Nf3 {[%clk 0:02:46]}  b5 {[%clk 0:02:52]} 11. e5 {[%clk 0:02:44]}  b4 {[%clk 0:02:52]} 12. exf6 {[%clk 0:02:33]}  bxc3 {[%clk 0:02:51]} 13. Qxc3 {[%clk 0:02:33]}  gxf6 {[%clk 0:02:52]} 14. Bh4 {[%clk 0:02:32]}  Rg8 {[%clk 0:02:51]} 15. Bf2 {[%clk 0:02:15]}  a5 {[%clk 0:02:44]} 16. Bb5 {[%clk 0:02:05]}  Nb4 {[%clk 0:02:43]} 17. Bxd7+ {[%clk 0:02:03]}  Qxd7 {[%clk 0:02:44]} 18. Qb3 {[%clk 0:01:53]}  Rxg2 {[%clk 0:02:29]} 19. Rd2 {[%clk 0:01:53]}  d5 {[%clk 0:02:28]} 20. a3 {[%clk 0:01:44]}  a4 {[%clk 0:02:20]} 21. Qe3 {[%clk 0:01:44]}  Nc6 {[%clk 0:02:20]} 22. Rhd1 {[%clk 0:01:30]}  Rb8 {[%clk 0:02:01]} 23. Nh4 {[%clk 0:01:28]}  Rg8 {[%clk 0:01:51]} 24. f5 {[%clk 0:01:24]}  Qb7 {[%clk 0:01:42]} 25. c3 {[%clk 0:01:05]}  Bxa3 {[%clk 0:01:39]} 26. fxe6 {[%clk 0:00:56]}  Bxb2+ {[%clk 0:01:39]} 27. Kc2 {[%clk 0:00:55]}  Qb3+ {[%clk 0:01:39]} 28. Kd3 {[%clk 0:00:56]}  Qc4+ {[%clk 0:01:39]} 29. Kc2 {[%clk 0:00:56]}  Nb4+ {[%clk 0:01:40]} 30. Kxb2 {[%clk 0:00:53]}  Qa2+ {[%clk 0:01:41]} 31. Kc1 {[%clk 0:00:53]}  Qa1# {[%clk 0:01:42]} 0-1


[Site "https://www.chess.com"]

[Event "Titled Tuesday Blitz January 31 Late 2023"]
[White "Diaz Perez, Michel Alejandro"]
[Black "Tari, Aryan"]
[WhiteFideId "3517179"]
[BlackFideId "1510045"]
[WhiteElo "2414"]
[BlackElo "2642"]
[Result "1/2-1/2"]
[Round "04"]
[TimeControl "180+2"]
[Date "2023.01.31"]
[WhiteClock "0:00:06"]
[BlackClock "0:00:04"]

1. e4 {[%clk 0:03:00]}  c6 {[%clk 0:02:58]} 2. d4 {[%clk 0:02:59]}  d5 {[%clk 0:02:59]} 3. exd5 {[%clk 0:02:58]}  cxd5 {[%clk 0:02:59]} 4. c4 {[%clk 0:02:59]}  Nf6 {[%clk 0:02:59]} 5. Nc3 {[%clk 0:02:58]}  e6 {[%clk 0:02:58]} 6. Nf3 {[%clk 0:02:58]}  Bb4 {[%clk 0:02:58]} 7. cxd5 {[%clk 0:02:58]}  Nxd5 {[%clk 0:02:59]} 8. Qc2 {[%clk 0:02:58]}  O-O {[%clk 0:02:58]} 9. Bd3 {[%clk 0:02:57]}  Nf6 {[%clk 0:02:57]} 10. O-O {[%clk 0:02:57]}  Nc6 {[%clk 0:02:56]} 11. Rd1 {[%clk 0:02:56]}  Be7 {[%clk 0:02:55]} 12. a3 {[%clk 0:02:54]}  b6 {[%clk 0:02:55]} 13. Ne4 {[%clk 0:02:51]}  Bb7 {[%clk 0:02:40]} 14. Nxf6+ {[%clk 0:02:49]}  Bxf6 {[%clk 0:02:41]} 15. Bxh7+ {[%clk 0:02:49]}  Kh8 {[%clk 0:02:42]} 16. Be4 {[%clk 0:02:50]}  Rc8 {[%clk 0:02:42]} 17. Qe2 {[%clk 0:02:48]}  Na5 {[%clk 0:02:31]} 18. Bxb7 {[%clk 0:02:24]}  Nxb7 {[%clk 0:02:32]} 19. Ne5 {[%clk 0:02:21]}  Qd5 {[%clk 0:02:26]} 20. Bf4 {[%clk 0:01:53]}  Kg8 {[%clk 0:02:18]} 21. Ng4 {[%clk 0:01:48]}  Be7 {[%clk 0:02:15]} 22. Be5 {[%clk 0:01:48]}  Nd6 {[%clk 0:01:56]} 23. Rd3 {[%clk 0:01:15]}  Qe4 {[%clk 0:01:37]} 24. Re3 {[%clk 0:01:14]}  Qc2 {[%clk 0:01:37]} 25. Qf3 {[%clk 0:01:03]}  Nf5 {[%clk 0:01:31]} 26. Ree1 {[%clk 0:00:54]}  Rfd8 {[%clk 0:01:22]} 27. Ne3 {[%clk 0:00:52]}  Nxe3 {[%clk 0:01:16]} 28. fxe3 {[%clk 0:00:49]}  Qxb2 {[%clk 0:01:12]} 29. Rf1 {[%clk 0:00:48]}  f6 {[%clk 0:01:12]} 30. Bg3 {[%clk 0:00:48]}  Qc2 {[%clk 0:01:03]} 31. Qg4 {[%clk 0:00:46]}  Kf7 {[%clk 0:00:59]} 32. Qh5+ {[%clk 0:00:46]}  Qg6 {[%clk 0:00:59]} 33. Qf3 {[%clk 0:00:45]}  Rc2 {[%clk 0:00:56]} 34. Rac1 {[%clk 0:00:44]}  Rdc8 {[%clk 0:00:56]} 35. Rxc2 {[%clk 0:00:44]}  Rxc2 {[%clk 0:00:57]} 36. Qb7 {[%clk 0:00:42]}  Qg5 {[%clk 0:00:52]} 37. e4 {[%clk 0:00:25]}  Qe3+ {[%clk 0:00:50]} 38. Kh1 {[%clk 0:00:25]}  Qxd4 {[%clk 0:00:48]} 39. e5 {[%clk 0:00:24]}  Qd3 {[%clk 0:00:43]} 40. Re1 {[%clk 0:00:22]}  f5 {[%clk 0:00:42]} 41. Qxa7 {[%clk 0:00:19]}  g5 {[%clk 0:00:33]} 42. Qxb6 {[%clk 0:00:14]}  f4 {[%clk 0:00:26]} 43. Bf2 {[%clk 0:00:14]}  Qd2 {[%clk 0:00:27]} 44. Rf1 {[%clk 0:00:12]}  Qe2 {[%clk 0:00:26]} 45. Kg1 {[%clk 0:00:11]}  Bc5 {[%clk 0:00:21]} 46. Qb7+ {[%clk 0:00:08]}  Kg6 {[%clk 0:00:21]} 47. Bxc5 {[%clk 0:00:08]}  Rxc5 {[%clk 0:00:22]} 48. Qe7 {[%clk 0:00:08]}  Qxe5 {[%clk 0:00:20]} 49. Qe8+ {[%clk 0:00:06]}  Kf5 {[%clk 0:00:18]} 50. Qf8+ {[%clk 0:00:06]}  Kg6 {[%clk 0:00:17]} 51. Qe8+ {[%clk 0:00:07]}  Kh7 {[%clk 0:00:14]} 52. Qe7+ {[%clk 0:00:06]}  Kh6 {[%clk 0:00:12]} 53. Qf8+ {[%clk 0:00:06]}  Kh7 {[%clk 0:00:08]} 54. Qe7+ {[%clk 0:00:06]}  Kg8 {[%clk 0:00:06]} 55. Qe8+ {[%clk 0:00:06]}  Kg7 {[%clk 0:00:06]} 56. Qe7+ {[%clk 0:00:07]}  Kh6 {[%clk 0:00:06]} 57. Qf8+ {[%clk 0:00:06]}  Kh5 {[%clk 0:00:06]} 58. Qf7+ {[%clk 0:00:06]}  Kh6 {[%clk 0:00:04]} 59. Qf8+ {[%clk 0:00:06]} 1/2-1/2


[Site "https://www.chess.com"]

[Event "Titled Tuesday Blitz January 31 Late 2023"]
[White "Janaszak, Dawid"]
[Black "Jones, Gawain C B"]
[WhiteFideId "1119206"]
[BlackFideId "409561"]
[WhiteElo "2316"]
[BlackElo "2618"]
[Result "0-1"]
[Round "04"]
[TimeControl "180+2"]
[Date "2023.01.31"]
[WhiteClock "0:00:07"]
[BlackClock "0:02:03"]

1. e4 {[%clk 0:03:00]}  c5 {[%clk 0:02:59]} 2. Nc3 {[%clk 0:03:00]}  Nc6 {[%clk 0:02:58]} 3. Bb5 {[%clk 0:02:59]}  Nd4 {[%clk 0:02:58]} 4. Nf3 {[%clk 0:03:00]}  e6 {[%clk 0:02:56]} 5. O-O {[%clk 0:02:57]}  a6 {[%clk 0:02:56]} 6. Bd3 {[%clk 0:02:57]}  Nc6 {[%clk 0:02:56]} 7. Nd5 {[%clk 0:02:53]}  d6 {[%clk 0:02:54]} 8. Ne3 {[%clk 0:02:51]}  g6 {[%clk 0:02:54]} 9. c3 {[%clk 0:02:50]}  Bg7 {[%clk 0:02:54]} 10. Bc2 {[%clk 0:02:50]}  e5 {[%clk 0:02:52]} 11. d4 {[%clk 0:02:45]}  exd4 {[%clk 0:02:52]} 12. cxd4 {[%clk 0:02:45]}  cxd4 {[%clk 0:02:53]} 13. Nd5 {[%clk 0:02:42]}  Nf6 {[%clk 0:02:49]} 14. Nxd4 {[%clk 0:02:31]}  O-O {[%clk 0:02:38]} 15. Bg5 {[%clk 0:01:51]}  Nxd4 {[%clk 0:02:37]} 16. Qxd4 {[%clk 0:01:51]}  Nxd5 {[%clk 0:02:38]} 17. Qxd5 {[%clk 0:01:50]}  Be6 {[%clk 0:02:29]} 18. Bxd8 {[%clk 0:01:01]}  Bxd5 {[%clk 0:02:28]} 19. Be7 {[%clk 0:00:54]}  Rfe8 {[%clk 0:02:27]} 20. Bxd6 {[%clk 0:00:48]}  Bxe4 {[%clk 0:02:27]} 21. Bxe4 {[%clk 0:00:41]}  Rxe4 {[%clk 0:02:28]} 22. Rfe1 {[%clk 0:00:35]}  Rae8 {[%clk 0:02:20]} 23. Rxe4 {[%clk 0:00:32]}  Rxe4 {[%clk 0:02:21]} 24. Ba3 {[%clk 0:00:27]}  b5 {[%clk 0:02:20]} 25. f3 {[%clk 0:00:22]}  Ra4 {[%clk 0:02:05]} 26. Rd1 {[%clk 0:00:08]}  b4 {[%clk 0:02:03]} 27. Rd8+ {[%clk 0:00:08]}  Bf8 {[%clk 0:02:03]} 28. Rd4 {[%clk 0:00:07]}  Bc5 {[%clk 0:02:03]} 0-1


[Site "https://www.chess.com"]

[Event "Titled Tuesday Blitz January 31 Late 2023"]
[White "Svane, Frederik"]
[Black "Denishev, Marat"]
[WhiteFideId "12923044"]
[BlackFideId "24131563"]
[WhiteElo "2600"]
[BlackElo "2255"]
[Result "1-0"]
[Round "04"]
[TimeControl "180+2"]
[Date "2023.01.31"]
[WhiteClock "0:00:52"]
[BlackClock "0:00:23"]

1. c3 {[%clk 0:03:00]}  Nf6 {[%clk 0:02:58]} 2. g3 {[%clk 0:02:56]}  g6 {[%clk 0:02:55]} 3. Bg2 {[%clk 0:02:56]}  Bg7 {[%clk 0:02:55]} 4. d4 {[%clk 0:02:56]}  O-O {[%clk 0:02:56]} 5. Nf3 {[%clk 0:02:57]}  d5 {[%clk 0:02:56]} 6. O-O {[%clk 0:02:54]}  a5 {[%clk 0:02:54]} 7. a4 {[%clk 0:02:51]}  Nbd7 {[%clk 0:02:54]} 8. Nbd2 {[%clk 0:02:51]}  Nb6 {[%clk 0:02:53]} 9. Nb3 {[%clk 0:02:49]}  c6 {[%clk 0:02:51]} 10. Ne5 {[%clk 0:02:45]}  Nfd7 {[%clk 0:02:42]} 11. Nxd7 {[%clk 0:02:45]}  Nxd7 {[%clk 0:02:38]} 12. e4 {[%clk 0:02:43]}  dxe4 {[%clk 0:02:37]} 13. Bxe4 {[%clk 0:02:41]}  Nf6 {[%clk 0:02:37]} 14. Bg2 {[%clk 0:02:40]}  Nd5 {[%clk 0:02:32]} 15. Re1 {[%clk 0:02:38]}  Re8 {[%clk 0:02:31]} 16. Nc5 {[%clk 0:02:31]}  b6 {[%clk 0:02:27]} 17. Nd3 {[%clk 0:02:31]}  Bb7 {[%clk 0:02:23]} 18. h4 {[%clk 0:02:27]}  Qc7 {[%clk 0:02:14]} 19. h5 {[%clk 0:02:25]}  Rad8 {[%clk 0:02:12]} 20. Qc2 {[%clk 0:02:07]}  Ba6 {[%clk 0:01:57]} 21. hxg6 {[%clk 0:01:55]}  hxg6 {[%clk 0:01:55]} 22. Bg5 {[%clk 0:01:55]}  Nf6 {[%clk 0:01:27]} 23. Ne5 {[%clk 0:01:52]}  Bb7 {[%clk 0:01:21]} 24. Bf4 {[%clk 0:01:50]}  Qc8 {[%clk 0:01:20]} 25. Nxg6 {[%clk 0:01:36]}  fxg6 {[%clk 0:01:19]} 26. Qxg6 {[%clk 0:01:36]}  Qg4 {[%clk 0:01:14]} 27. Qxg4 {[%clk 0:01:23]}  Nxg4 {[%clk 0:01:15]} 28. Bc7 {[%clk 0:01:24]}  Rc8 {[%clk 0:01:03]} 29. Bxb6 {[%clk 0:01:23]}  e5 {[%clk 0:01:03]} 30. Bh3 {[%clk 0:01:19]}  Nf6 {[%clk 0:00:48]} 31. dxe5 {[%clk 0:01:18]}  Nd5 {[%clk 0:00:48]} 32. Bxc8 {[%clk 0:01:11]}  Bxc8 {[%clk 0:00:48]} 33. Bxa5 {[%clk 0:01:08]}  Bg4 {[%clk 0:00:46]} 34. c4 {[%clk 0:01:05]}  Ne7 {[%clk 0:00:38]} 35. Bc3 {[%clk 0:01:04]}  Ng6 {[%clk 0:00:32]} 36. f4 {[%clk 0:00:59]}  Bf5 {[%clk 0:00:28]} 37. a5 {[%clk 0:00:52]}  Bd3 {[%clk 0:00:28]} 38. a6 {[%clk 0:00:52]}  Bxc4 {[%clk 0:00:26]} 39. a7 {[%clk 0:00:52]}  Ra8 {[%clk 0:00:26]} 40. f5 {[%clk 0:00:52]}  Nf8 {[%clk 0:00:23]} 41. e6 {[%clk 0:00:52]} 1-0


[Site "https://www.chess.com"]